fUSD/lending_fUSD_20240319
["ID","MTS","AMOUNT","RATE_DAILY","PERIOD"]
[319587068,1710883874520,-797.1,0.00030684,2]
[319587069,1710883874530,-500.0,0.00030684,2]
[319587070,1710883874543,-500.0,0.00030684,2]
[319587071,1710883874552,-320.00145227,0.00030684,2]
[319587072,1710883874562,-1094.92,0.00030684,2]
[319587073,1710883874571,-875.48,0.00030684,2]
[319587074,1710883874580,-2365.74,0.00030684,2]
[319587075,1710883874590,-500.0,0.00030684,2]
[319587076,1710883874599,-1362.21,0.00030684,2]
[319587077,1710883874609,-1403.96,0.00030684,2]
[319587078,1710883874618,-500.0,0.00030684,2]
[319587079,1710883874627,-500.0,0.00030684,2]
[319587080,1710883874636,-590.08,0.00030684,2]
[319587081,1710883874646,-620.16,0.00030684,2]
[319587082,1710883874655,-506.75,0.00030684,2]
[319587083,1710883874664,-2130.05,0.00030684,2]
[319587084,1710883874674,-569.27,0.00030684,2]
[319587085,1710883874683,-518.16,0.00030684,2]
[319587086,1710883874692,-1766.0,0.00030684,2]
[319587087,1710883874701,-2685.94,0.00030684,2]
[319587088,1710883874711,-500.0,0.00030684,2]
[319587089,1710883874720,-873.29,0.00030684,2]
[319587090,1710883874729,-2470.79,0.00030684,2]
[319587091,1710883874739,-1534.58,0.00030684,2]
[319587092,1710883874748,-500.0,0.00030684,2]
[319587093,1710883874758,-500.0,0.00030684,2]
[319587094,1710883874770,-500.0,0.00030684,2]
[319587095,1710883874779,-500.0,0.00030684,2]
[319587096,1710883874789,-1036.45,0.00030684,2]
[319587097,1710883874797,-512.06,0.00030684,2]
[319587098,1710883874807,-1470.65,0.00030684,2]
[319587099,1710883874816,-539.91,0.00030684,2]
[319587100,1710883874825,-500.0,0.00030684,2]
[319587101,1710883874834,-500.0,0.00030684,2]
[319587102,1710883874843,-1385.11,0.00030684,2]
[319587103,1710883874852,-500.0,0.00030684,2]
[319587104,1710883874861,-500.0,0.00030684,2]
[319587105,1710883874870,-892.09,0.00030684,2]
[319587106,1710883874880,-1041.1,0.00030684,2]
[319587107,1710883874889,-500.0,0.00030684,2]
[319587108,1710883874898,-4269.17,0.00030684,2]
[319587109,1710883874907,-500.0,0.00030684,2]
[319587110,1710883874916,-500.0,0.00030684,2]
[319587111,1710883874925,-500.0,0.00030684,2]
[319587112,1710883874935,-670.7,0.00030684,2]
[319587113,1710883874944,-1864.38,0.00030684,2]
[319587114,1710883874953,-618.06,0.00030684,2]
[319587115,1710883874963,-500.0,0.00030684,2]
[319587116,1710883874973,-597.33,0.00030684,2]
[319587117,1710883874982,-2495.07,0.00030684,2]
[319587118,1710883874992,-4586.31,0.00030684,2]
[319587119,1710883875001,-1054.82,0.00030684,2]
[319587120,1710883875013,-1014.6,0.00030684,2]
[319587121,1710883875022,-500.0,0.00030684,2]
[319587122,1710883875032,-500.0,0.00030684,2]
[319587123,1710883875041,-500.0,0.00030684,2]
[319587124,1710883875051,-500.0,0.00030684,2]
[319587125,1710883875060,-500.0,0.00030684,2]
[319587126,1710883875070,-1337.58,0.00030684,2]
[319587127,1710883875079,-512.04,0.00030684,2]
[319587128,1710883875090,-677.62,0.00030684,2]
[319587129,1710883875100,-1526.76,0.00030684,2]
[319587130,1710883875112,-1259.98,0.00030684,2]
[319587131,1710883875122,-1566.09,0.00030684,2]
[319587132,1710883875131,-775.9,0.00030684,2]
[319587133,1710883875142,-500.0,0.00030684,2]
[319587134,1710883875152,-694.07,0.00030684,2]
[319587135,1710883875161,-2087.64,0.00030684,2]
[319587136,1710883875170,-500.0,0.00030684,2]
[319587137,1710883875182,-511.94,0.00030684,2]
[319587138,1710883875192,-501.17981959,0.00030684,2]
[319587139,1710883875201,-151.0,0.00030684,7]
[319587140,1710883875210,-500.0,0.00030684,2]
[319587141,1710883875220,-1387.77,0.00030684,2]
[319587142,1710883875230,-500.0,0.00030684,2]
[319587143,1710883875239,-500.0,0.00030684,2]
[319587144,1710883875248,-3092.84,0.00030684,2]
[319587145,1710883875258,-2016.56,0.00030684,2]
[319587146,1710883875270,-500.0,0.00030684,2]
[319587147,1710883875280,-315.67945066,0.00030684,2]
[319587148,1710883875289,-4137.27,0.00030684,2]
[319587149,1710883875301,-500.0,0.00030684,2]
[319587150,1710883875313,-500.0,0.00030684,2]
[319587151,1710883875323,-500.0,0.00030684,2]
[319587152,1710883875333,-500.0,0.00030684,2]
[319587153,1710883875343,-1221.58,0.00030684,2]
[319587154,1710883875352,-887.17,0.00030684,2]
[319587155,1710883875363,-1339.53,0.00030684,2]
[319587156,1710883875375,-1141.5,0.00030684,2]
[319587157,1710883875384,-2224.93,0.00030684,2]
[319587158,1710883875394,-522.40453026,0.00030684,2]
[319587159,1710883875403,-515.48,0.00030684,2]
[319587160,1710883875412,-522.54,0.00030684,2]
[319587161,1710883875422,-500.0,0.00030684,2]
[319587162,1710883875435,-1238.68,0.00030684,2]
[319587163,1710883875444,-755.91,0.00030684,2]
[319587164,1710883875453,-521.0,0.00030684,2]
[319587165,1710883875463,-1097.47,0.00030684,2]
[319587166,1710883875472,-500.0,0.00030684,2]
[319587167,1710883875481,-500.0,0.00030684,2]
[319587168,1710883875491,-853.55,0.00030684,2]
[319587169,1710883875500,-735.47,0.00030684,2]
[319587170,1710883875515,-1615.45,0.00030684,2]
[319587171,1710883875525,-859.69,0.00030684,2]
[319587172,1710883875534,-500.0,0.00030684,2]
[319587173,1710883875544,-1583.83,0.00030684,2]
[319587174,1710883875553,-500.0,0.00030684,2]
[319587175,1710883875562,-500.0,0.00030684,2]
[319587176,1710883875571,-780.78,0.00030684,2]
[319587177,1710883875580,-500.0,0.00030684,2]
[319587178,1710883875589,-2133.33,0.00030684,2]
[319587179,1710883875599,-500.0,0.00030684,2]
[319587180,1710883875608,-500.0,0.00030684,2]
[319587181,1710883875617,-1323.94,0.00030684,2]
[319587182,1710883875627,-500.0,0.00030684,2]
[319587183,1710883875636,-151.0,0.00030684,7]
[319587184,1710883875645,-151.0,0.00030684,7]
[319587185,1710883875654,-151.0,0.00030684,7]
[319587186,1710883875665,-823.79,0.00030684,2]
[319587187,1710883875674,-500.0,0.00030684,2]
[319587188,1710883875683,-500.0,0.00030684,2]
[319587189,1710883875693,-508.96,0.00030684,2]
[319587190,1710883875702,-1623.15,0.00030684,2]
[319587191,1710883875711,-500.0,0.00030684,2]
[319587192,1710883875721,-795.56,0.00030684,2]
[319587193,1710883875730,-500.0,0.00030684,2]
[319587194,1710883875741,-500.0,0.00030684,2]
[319587195,1710883875750,-1065.61,0.00030684,2]
[319587196,1710883875762,-1468.41,0.00030684,2]
[319587197,1710883875770,-704.5,0.00030684,2]
[319587198,1710883875780,-1194.31,0.00030684,2]
[319587199,1710883875789,-500.0,0.00030684,2]
[319587200,1710883875798,-500.0,0.00030684,2]
[319587201,1710883875807,-1136.64,0.00030684,2]
[319587202,1710883875817,-736.67,0.00030684,2]
[319587203,1710883875827,-1054.6,0.00030684,2]
[319587204,1710883875836,-506.73220273,0.00030684,2]
[319587205,1710883875846,-500.0,0.00030684,2]
[319587206,1710883875854,-1431.34,0.00030684,2]
[319587207,1710883875863,-500.0,0.00030684,2]
[319587208,1710883875874,-961.6,0.00030684,2]
[319587209,1710883875882,-500.0,0.00030684,2]
[319587210,1710883875892,-2402.37,0.00030684,2]
[319587211,1710883875902,-500.0,0.00030684,2]
[319587212,1710883875911,-1716.71,0.00030684,2]
[319587213,1710883875921,-500.0,0.00030684,2]
[319587214,1710883875931,-1601.69,0.00030684,2]
[319587215,1710883875941,-500.0,0.00030684,2]
[319587216,1710883875950,-4667.46,0.00030684,2]
[319587217,1710883875959,-1218.63,0.00030684,2]
[319587218,1710883875969,-500.0,0.00030684,2]
[319587219,1710883875978,-500.0,0.00030684,2]
[319587220,1710883875987,-500.0,0.00030684,2]
[319587221,1710883875996,-1581.23,0.00030684,2]
[319587222,1710883876006,-1639.05,0.00030684,2]
[319587223,1710883876016,-500.0,0.00030684,2]
[319587224,1710883876025,-843.91,0.00030684,2]
[319587225,1710883876034,-907.99,0.00030684,2]
[319587226,1710883876045,-500.0,0.00030684,2]
[319587227,1710883876054,-500.0,0.00030684,2]
[319587228,1710883876063,-1444.08,0.00030684,2]
[319587229,1710883876073,-500.0,0.00030684,2]
[319587230,1710883876083,-2169.8,0.00030684,2]
[319587231,1710883876092,-643.36,0.00030684,2]
[319587232,1710883876102,-500.0,0.00030684,2]
[319587233,1710883876111,-500.0,0.00030684,2]
[319587234,1710883876122,-1368.44,0.00030684,2]
[319587235,1710883876133,-247.53489739,0.00030684,2]
[319587236,1710883876142,-500.0,0.00030684,2]
[319587237,1710883876467,-1788.21,0.00030684,2]
[319587238,1710883876477,-997.85,0.00030684,2]
[319587239,1710883876486,-500.0,0.00030684,2]
[319587240,1710883876495,-2227.94,0.00030684,2]
[319587241,1710883876504,-500.0,0.00030684,2]
[319587242,1710883876515,-523.21,0.00030684,2]
[319587243,1710883876524,-500.0,0.00030684,2]
[319587244,1710883876533,-500.0,0.00030684,2]
[319587245,1710883876543,-500.0,0.00030684,2]
[319587246,1710883876552,-521.75641641,0.00030684,2]
[319587247,1710883876561,-500.0,0.00030684,2]
[319587248,1710883876570,-1062.54,0.00030684,2]
[319587249,1710883876579,-2421.41,0.00030684,2]
[319587250,1710883876588,-500.0,0.00030684,2]
[319587251,1710883876597,-500.0,0.00030684,2]
[319587252,1710883876607,-1427.8,0.00030684,2]
[319587253,1710883876616,-944.3,0.00030684,2]
[319587254,1710883876625,-721.9,0.00030684,2]
[319587255,1710883876634,-500.0,0.00030684,2]
[319587256,1710883876644,-807.72,0.00030684,2]
[319587257,1710883876653,-500.0,0.00030684,2]
[319587258,1710883876662,-2085.28,0.00030684,2]
[319587259,1710883876672,-1209.88,0.00030684,2]
[319587260,1710883876681,-629.63,0.00030684,2]
[319587261,1710883876690,-500.0,0.00030684,2]
[319587262,1710883876700,-2677.15,0.00030684,2]
[319587263,1710883876709,-151.0,0.00030684,7]
[319587264,1710883876718,-151.0,0.00030684,7]
[319587265,1710883876727,-1860.63,0.00030684,2]
[319587266,1710883876737,-608.3,0.00030684,2]
[319587267,1710883876746,-2012.38,0.00030684,2]
[319587268,1710883876756,-500.0,0.00030684,2]
[319587269,1710883876766,-689.51,0.00030684,2]
[319587270,1710883876776,-3603.52,0.00030684,2]
[319587271,1710883876785,-2566.01,0.00030684,2]
[319587272,1710883876795,-1531.43,0.00030684,2]
[319587273,1710883876804,-546.93,0.00030684,2]
[319587274,1710883876814,-2355.47,0.00030684,2]
[319587275,1710883876823,-667.89,0.00030684,2]
[319587276,1710883876832,-2131.2,0.00030684,2]
[319587277,1710883876841,-2323.6,0.00030684,2]
[319587278,1710883876851,-1029.83,0.00030684,2]
[319587279,1710883876860,-1002.08,0.00030684,2]
[319587280,1710883876869,-920.9,0.00030684,2]
[319587281,1710883876878,-500.0,0.00030684,2]
[319587282,1710883876888,-500.0,0.00030684,2]
[319587283,1710883876897,-500.0,0.00030684,2]
[319587284,1710883876906,-500.0,0.00030684,2]
[319587285,1710883876915,-500.0,0.00030684,2]
[319587286,1710883876925,-911.98,0.00030684,2]
[319587287,1710883876934,-1678.98,0.00030684,2]
[319587288,1710883876944,-500.0,0.00030684,2]
[319587289,1710883876953,-1863.56,0.00030684,2]
[319587290,1710883876963,-1128.71,0.00030684,2]
[319587291,1710883876972,-500.0,0.00030684,2]
[319587292,1710883876982,-2681.45,0.00030684,2]
[319587293,1710883876992,-1339.78,0.00030684,2]
[319587294,1710883877002,-500.0,0.00030684,2]
[319587295,1710883877012,-1106.22,0.00030684,2]
[319587296,1710883877022,-1300.16,0.00030684,2]
[319587297,1710883877031,-992.6,0.00030684,2]
[319587298,1710883877041,-1592.35,0.00030684,2]
[319587299,1710883877053,-819.23,0.00030684,2]
[319587300,1710883877063,-1472.83,0.00030684,2]
[319587301,1710883877073,-1693.58,0.00030684,2]
[319587302,1710883877082,-920.2,0.00030684,2]
[319587303,1710883877091,-500.0,0.00030684,2]
[319587304,1710883877101,-3015.74,0.00030684,2]
[319587305,1710883877114,-1479.36,0.00030684,2]
[319587306,1710883877123,-1476.3,0.00030684,2]
[319587307,1710883877133,-500.0,0.00030684,2]
[319587308,1710883877142,-1044.17,0.00030684,2]
[319587309,1710883877153,-730.68,0.00030684,2]
[319587310,1710883877163,-500.0,0.00030684,2]
[319587311,1710883877172,-578.08,0.00030684,2]
[319587312,1710883877182,-500.0,0.00030684,2]
[319587313,1710883877192,-595.68,0.00030684,2]
[319587314,1710883877201,-3228.34,0.00030684,2]
[319587315,1710883877211,-1788.05,0.00030684,2]
[319587316,1710883877220,-500.0,0.00030684,2]
[319587317,1710883877229,-4601.24,0.00030684,2]
[319587318,1710883877238,-3085.88,0.00030684,2]
[319587319,1710883877247,-500.0,0.00030684,2]
[319587320,1710883877257,-500.0,0.00030684,2]
[319587321,1710883877268,-500.0,0.00030684,2]
[319587322,1710883877278,-599.74,0.00030684,2]
[319587323,1710883877288,-1358.55,0.00030684,2]
[319587324,1710883877298,-670.46,0.00030684,2]
[319587325,1710883877307,-500.0,0.00030684,2]
[319587326,1710883877317,-642.15,0.00030684,2]
[319587327,1710883877327,-500.0,0.00030684,2]
[319587328,1710883877336,-566.16,0.00030684,2]
[319587329,1710883877346,-3009.86,0.00030684,2]
[319587330,1710883877356,-721.15,0.00030684,2]
[319587331,1710883877365,-2938.58,0.00030684,2]
[319587332,1710883877374,-500.0,0.00030684,2]
[319587333,1710883877384,-4752.16,0.00030684,2]
[319587334,1710883877393,-500.0,0.00030684,2]
[319587335,1710883877401,-998.08,0.00030684,2]
[319587336,1710883877411,-1617.93,0.00030684,2]
[319587337,1710883877420,-1489.28,0.00030684,2]
[319587338,1710883877429,-619.52,0.00030684,2]
[319587339,1710883877438,-3181.49,0.00030684,2]
[319587340,1710883877448,-667.9,0.00030684,2]
[319587341,1710883877458,-500.0,0.00030684,2]
[319587342,1710883877467,-771.66,0.00030684,2]
[319587343,1710883877477,-500.0,0.00030684,2]
[319587344,1710883877487,-917.14,0.00030684,2]
[319587345,1710883877496,-1132.34,0.00030684,2]
[319587346,1710883877505,-536.82,0.00030684,2]
[319587347,1710883877515,-1991.15,0.00030684,2]
[319587348,1710883877524,-4279.74,0.00030684,2]
[319587349,1710883877533,-612.08,0.00030684,2]
[319587350,1710883877543,-1110.06,0.00030684,2]
[319587351,1710883877553,-500.0,0.00030684,2]
[319587352,1710883877562,-500.0,0.00030684,2]
[319587353,1710883877571,-1665.19,0.00030684,2]
[319587354,1710883877581,-1045.55,0.00030684,2]
[319587355,1710883877591,-500.0,0.00030684,2]
[319587356,1710883877600,-1094.52,0.00030684,2]
[319587357,1710883877610,-500.0,0.00030684,2]
[319587358,1710883877619,-532.26,0.00030684,2]
[319587359,1710883877629,-500.0,0.00030684,2]
[319587360,1710883877638,-1786.87,0.00030684,2]
[319587361,1710883877647,-502.72,0.00030684,2]
[319587362,1710883877657,-500.0,0.00030684,2]
[319587363,1710883877667,-806.79,0.00030684,2]
[319587364,1710883877676,-748.95,0.00030684,2]
[319587365,1710883877686,-500.0,0.00030684,2]
[319587366,1710883877695,-500.0,0.00030684,2]
[319587367,1710883877704,-593.79,0.00030684,2]
[319587368,1710883877714,-500.0,0.00030684,2]
[319587369,1710883877723,-8856.3,0.00030684,2]
[319587370,1710883877733,-500.0,0.00030684,2]
[319587371,1710883877742,-500.0,0.00030684,2]
[319587372,1710883877752,-760.65,0.00030684,2]
[319587373,1710883877762,-554.19,0.00030684,2]
[319587374,1710883877771,-500.0,0.00030684,2]
[319587375,1710883877781,-1106.69,0.00030684,2]
[319587376,1710883877790,-500.0,0.00030684,2]
[319587377,1710883877800,-2327.89,0.00030684,2]
[319587378,1710883877809,-601.9,0.00030684,2]
[319587379,1710883877818,-500.0,0.00030684,2]
[319587380,1710883877827,-4503.28,0.00030684,2]
[319587381,1710883877836,-683.59,0.00030684,2]
[319587382,1710883877846,-1341.14,0.00030684,2]
[319587383,1710883877855,-3065.68,0.00030684,2]
[319587384,1710883877864,-500.0,0.00030684,2]
[319587385,1710883877873,-1146.77,0.00030684,2]
[319587386,1710883877883,-70475.11,0.00030684,2]
[319587387,1710883877892,-1391.85,0.00030684,2]
[319587388,1710883877902,-923.46,0.00030684,2]
[319587389,1710883877911,-996.04,0.00030684,2]
[319587390,1710883877920,-500.0,0.00030684,2]
[319587391,1710883877930,-500.0,0.00030684,2]
[319587392,1710883877939,-3598.57,0.00030684,2]
[319587393,1710883877949,-500.0,0.00030684,2]
[319587394,1710883877958,-500.0,0.00030684,2]
[319587395,1710883877968,-500.0,0.00030684,2]
[319587396,1710883877989,-671.83,0.00030684,2]
[319587397,1710883877999,-2497.58,0.00030684,2]
[319587398,1710883878009,-1473.31,0.00030684,2]
[319587399,1710883878029,-1107.93,0.00030684,2]
[319587400,1710883878039,-500.0,0.00030684,2]
[319587401,1710883878048,-503.54,0.00030684,2]
[319587402,1710883878058,-500.0,0.00030684,2]
[319587403,1710883878067,-500.04,0.00030684,2]
[319587404,1710883878077,-743.86,0.00030684,2]
[319587405,1710883878087,-1175.56,0.00030684,2]
[319587406,1710883878096,-2560.04,0.00030684,2]
[319587407,1710883878106,-14154.91,0.00030684,2]
[319587408,1710883878115,-5898.84,0.00030684,2]
[319587409,1710883878128,-500.0,0.00030684,2]
[319587410,1710883878137,-500.0,0.00030684,2]
[319587411,1710883878146,-500.0,0.00030684,2]
[319587412,1710883878155,-500.0,0.00030684,2]
[319587413,1710883878166,-500.0,0.00030684,2]
[319587414,1710883878175,-2689.21,0.00030684,2]
[319587415,1710883878184,-595.84,0.00030684,2]
[319587416,1710883878194,-500.0,0.00030684,2]
[319587417,1710883878205,-1267.16,0.00030684,2]
[319587418,1710883878214,-500.0,0.00030684,2]
[319587419,1710883878223,-2980.98,0.00030684,2]
[319587420,1710883878233,-3065.32,0.00030684,2]
[319587421,1710883878242,-500.0,0.00030684,2]
[319587422,1710883878252,-500.0,0.00030684,2]
[319587423,1710883878261,-151.0,0.00030684,7]
[319587424,1710883878271,-500.0,0.00030684,2]
[319587425,1710883878281,-151.0,0.00030684,7]
[319587426,1710883878291,-3801.0,0.00030684,2]
[319587427,1710883878300,-4556.68,0.00030684,2]
[319587428,1710883878311,-20389.23,0.00030684,2]
[319587429,1710883878320,-2891.72,0.00030684,2]
[319587430,1710883878329,-725.51,0.00030684,2]
[319587431,1710883878338,-47375.69,0.00030684,2]
[319587432,1710883878348,-200.608362,0.00030684,7]
[319587433,1710883878357,-2490.42,0.00030684,2]
[319587434,1710883878366,-500.0,0.00030684,2]
[319587435,1710883878376,-500.0,0.00030684,2]
[319587436,1710883878385,-500.0,0.00030684,2]
[319587437,1710883878397,-500.0,0.00030684,2]
[319587438,1710883878407,-151.0,0.00030684,7]
[319587439,1710883878417,-286.881774,0.00030684,7]
[319587440,1710883878426,-4147.4,0.00030684,2]
[319587441,1710883878435,-500.0,0.00030684,2]
[319587442,1710883878444,-1945.58,0.00030684,2]
[319587443,1710883878454,-500.0,0.00030684,2]
[319587444,1710883878464,-3211.93,0.00030684,2]
[319587445,1710883878473,-500.0,0.00030684,2]
[319587446,1710883878483,-2314.74,0.00030684,2]
[319587447,1710883878494,-1600.3,0.00030684,2]
[319587448,1710883878504,-500.0,0.00030684,2]
[319587449,1710883878515,-1483.68,0.00030684,2]
[319587450,1710883878525,-559.95,0.00030684,2]
[319587451,1710883878535,-663.81,0.00030684,2]
[319587452,1710883878544,-500.0,0.00030684,2]
[319587453,1710883878554,-500.0,0.00030684,2]
[319587454,1710883878564,-500.0,0.00030684,2]
[319587455,1710883878573,-10570.94,0.00030684,2]
[319587456,1710883878583,-10886.69,0.00030684,2]
[319587457,1710883878592,-3865.29,0.00030684,2]
[319587458,1710883878602,-2185.36,0.00030684,2]
[319587459,1710883878611,-2752.16,0.00030684,2]
[319587460,1710883878621,-500.0,0.00030684,2]
[319587461,1710883878631,-500.0,0.00030684,2]
[319587462,1710883878641,-500.0,0.00030684,2]
[319587463,1710883878651,-500.0,0.00030684,2]
[319587464,1710883878660,-4043.67,0.00030684,2]
[319587465,1710883878670,-286.89665773,0.00030684,2]
[319587466,1710883878679,-1097.94,0.00030684,2]
[319587467,1710883878688,-606.69,0.00030684,2]
[319587468,1710883878698,-7939.41,0.00030684,2]
[319587469,1710883878709,-2749.39,0.00030684,2]
[319587470,1710883878718,-2790.61,0.00030684,2]
[319587471,1710883878727,-1059.8,0.00030684,2]
[319587472,1710883878736,-1280.77,0.00030684,2]
[319587473,1710883878746,-877.7,0.00030684,2]
[319587474,1710883878755,-3601.4,0.00030684,2]
[319587475,1710883878766,-500.0,0.00030684,2]
[319587476,1710883878775,-1476.18,0.00030684,2]
[319587477,1710883878785,-4740.7,0.00030684,2]
[319587478,1710883878878,-500.0,0.00030684,2]
[319587479,1710883878887,-500.0,0.00030684,2]
[319587480,1710883878897,-891.26,0.00030684,2]
[319587481,1710883878906,-500.0,0.00030684,2]
[319587482,1710883878916,-500.0,0.00030684,2]
[319587483,1710883878925,-464.46,0.00030684,2]
[319587484,1710883878934,-500.0,0.00030684,2]
[319587485,1710883878944,-500.0,0.00030684,2]
[319587486,1710883878953,-500.0,0.00030684,2]
[319587487,1710883878962,-500.0,0.00030684,2]
[319587488,1710883878971,-1559.83,0.00030684,2]
[319587489,1710883878981,-5079.64,0.00030684,2]
[319587490,1710883878990,-151.0,0.00030684,7]
[319587491,1710883878999,-151.0,0.00030684,7]
[319587492,1710883879009,-1577.2,0.00030684,2]
[319587493,1710883879020,-500.0,0.00030684,2]
[319587494,1710883879030,-4218.37,0.00030684,2]
[319587495,1710883879039,-9828.36,0.00030684,2]
[319587496,1710883879048,-500.0,0.00030684,2]
[319587497,1710883879058,-5493.68,0.00030684,2]
[319587498,1710883879067,-500.0,0.00030684,2]
[319587499,1710883879076,-500.0,0.00030684,2]
[319587500,1710883879085,-5160.57,0.00030684,2]
[319587501,1710883879095,-2531.37,0.00030684,2]
[319587502,1710883879107,-500.0,0.00030684,2]
[319587503,1710883879116,-4906.24,0.00030684,2]
[319587504,1710883879125,-4165.31,0.00030684,2]
[319587505,1710883879134,-5275.57,0.00030684,2]
[319587506,1710883879146,-500.0,0.00030684,2]
[319587507,1710883879156,-500.0,0.00030684,2]
[319587508,1710883879165,-1056.79,0.00030684,2]
[319587509,1710883879175,-500.0,0.00030684,2]
[319587510,1710883879184,-500.0,0.00030684,2]
[319587511,1710883879196,-4839.55,0.00030684,2]
[319587512,1710883879206,-500.0,0.00030684,2]
[319587513,1710883879216,-500.0,0.00030684,2]
[319587514,1710883879226,-7419.89,0.00030684,2]
[319587515,1710883879236,-4229.15,0.00030684,2]
[319587516,1710883879245,-1194.33,0.00030684,2]
[319587517,1710883879255,-3245.57,0.00030684,2]
[319587518,1710883879266,-579.37755594,0.00030684,2]
[319587519,1710883879275,-4377.03,0.00030684,2]
[319587520,1710883879284,-500.0,0.00030684,2]
[319587521,1710883879293,-500.0,0.00030684,2]
[319587522,1710883879303,-500.0,0.00030684,2]
[319587523,1710883879312,-2111.4,0.00030684,2]
[319587524,1710883879321,-8031.56,0.00030684,2]
[319587525,1710883879331,-651.65,0.00030684,2]
[319587526,1710883879340,-500.0,0.00030684,2]
[319587527,1710883879352,-500.0,0.00030684,2]
[319587528,1710883879361,-1423.31,0.00030684,2]
[319587529,1710883879371,-5259.72,0.00030684,2]
[319587530,1710883879380,-1204.58,0.00030684,2]
[319587531,1710883879388,-2930.26,0.00030684,2]
[319587532,1710883879397,-500.0,0.00030684,2]
[319587533,1710883879406,-11130.16,0.00030684,2]
[319587534,1710883879415,-832.52,0.00030684,2]
[319587535,1710883879424,-9249.81,0.00030684,2]
[319587536,1710883879433,-500.0,0.00030684,2]
[319587537,1710883879442,-5684.8,0.00030684,2]
[319587538,1710883879451,-500.0,0.00030684,2]
[319587539,1710883879460,-3804.28,0.00030684,2]
[319587540,1710883879468,-8973.34,0.00030684,2]
[319587541,1710883879477,-500.0,0.00030684,2]
[319587542,1710883879487,-1414.18,0.00030684,2]
[319587543,1710883879496,-628.16491088,0.00030684,2]
[319587544,1710883879504,-3168.58,0.00030684,2]
[319587545,1710883879515,-8338.3,0.00030684,2]
[319587546,1710883879524,-500.0,0.00030684,2]
[319587547,1710883879533,-4033.8,0.00030684,2]
[319587548,1710883879542,-3441.43,0.00030684,2]
[319587549,1710883879552,-316.20748402,0.00030684,2]
[319587550,1710883879561,-500.0,0.00030684,2]
[319587551,1710883879570,-7232.08,0.00030684,2]
[319587552,1710883879580,-10350.75,0.00030684,2]
[319587553,1710883879590,-500.0,0.00030684,2]
[319587554,1710883879599,-3837.76,0.00030684,2]
[319587555,1710883879609,-4633.1,0.00030684,2]
[319587556,1710883879618,-500.0,0.00030684,2]
[319587557,1710883879627,-12146.42,0.00030684,2]
[319587558,1710883879636,-960.52,0.00030684,2]
[319587559,1710883879646,-4285.4,0.00030684,2]
[319587560,1710883879655,-10482.14,0.00030684,2]
[319587561,1710883879664,-151.0,0.00030684,7]
[319587562,1710883879674,-1420.4,0.00030684,2]
[319587563,1710883879683,-500.0,0.00030684,2]
[319587564,1710883879692,-151.0,0.00030684,7]
[319587565,1710883879701,-500.0,0.00030684,2]
[319587566,1710883879710,-500.0,0.00030684,2]
[319587567,1710883879720,-1293.02,0.00030684,2]